bitfinex/quotes_SOLUSD_20251201
["timestamp","ask_amount","ask_price","bid_price","bid_amount"]
[1764626146417,3.93856625,125.99,125.97,8.8]
[1764626146596,3.93856625,125.98,125.97,8.8]
[1764626146994,16.308864,126.02,125.97,12.73856625]
[1764626147193,24.24441109,126.02,125.98,3.93856625]
[1764626148612,24.24441109,126.02,125.98,11.87619233]
[1764626152917,28.18297734,126.02,125.97,16.73807911]
[1764626153118,3.93856625,125.98,125.95,7.93965859]
[1764626153311,3.93856625,126.0,125.94,7.94004981]
[1764626153511,3.93856625,125.96,125.93,7.9408955]
[1764626153717,3.93856625,125.95,125.94,8.8]
[1764626153918,3.93856625,125.96,125.94,8.8]
[1764626154220,20.24743025,125.98,125.94,8.8]
[1764626155419,3.93856625,125.97,125.95,7.93965859]
[1764626155625,20.24743025,125.98,125.95,7.93965859]
[1764626156317,28.18522268,125.98,125.95,7.93965859]
[1764626160210,3.93856625,125.97,125.95,7.93965859]
[1764626160526,3.93856625,125.96,125.91,23.79323657]
[1764626160699,3.93856625,125.95,125.92,8.8]
[1764626160904,3.93856625,125.96,125.92,12.73856625]
[1764626161221,3.93856625,125.96,125.92,8.8]
[1764626161419,3.93856625,125.96,125.92,20.68011644]
[1764626161732,11.87770047,125.96,125.92,20.68011644]
[1764626162400,11.87770047,125.96,125.92,16.74155019]
[1764626162730,11.87770047,125.96,125.92,20.68011644]
[1764626163523,11.87770047,125.96,125.93,16.74089443]
[1764626163829,11.87770047,125.96,125.94,8.8]
[1764626164725,3.93856625,125.95,125.92,8.8]
[1764626165022,3.93856625,125.94,125.92,8.8]
[1764626165724,3.93856625,125.95,125.92,8.8]
[1764626166914,11.87825869,125.95,125.92,16.74148392]
[1764626167426,7.93969244,125.95,125.92,16.74148392]
[1764626169611,11.87825869,125.95,125.92,16.74148392]
[1764626170321,3.93856625,125.95,125.92,16.74148392]
[1764626171137,3.93856625,125.96,125.92,16.74148392]
[1764626171311,3.93856625,125.95,125.92,8.8]
[1764626172529,11.87831961,125.95,125.92,16.74146838]
[1764626172735,3.93856625,125.95,125.92,16.74146838]
[1764626172916,11.87797873,125.96,125.92,20.68003463]
[1764626173239,11.87797873,125.96,125.92,16.74146838]
[1764626174830,3.93856625,125.94,125.92,8.8]
[1764626175013,3.93856625,125.95,125.92,8.8]
[1764626176733,11.87860492,125.95,125.92,8.8]
[1764626178522,11.87784561,125.96,125.92,20.67999609]
[1764626178931,11.87784561,125.96,125.92,16.74142984]
[1764626179239,11.87784561,125.96,125.92,7.94142984]
[1764626179447,11.87784561,125.96,125.93,8.8]
[1764626179945,11.87727022,125.97,125.93,12.73856625]
[1764626180836,11.87727022,125.97,125.94,7.94028902]
[1764626185463,11.87792433,125.96,125.94,8.8]
[1764626185956,7.93935808,125.96,125.94,8.8]
[1764626189964,11.87709729,125.97,125.94,16.74022609]
[1764626193767,3.93856625,125.97,125.94,16.74022609]
[1764626194665,11.87659823,125.98,125.94,16.74022609]
[1764626194977,3.93856625,126.05,125.97,3.93856625]
[1764626195143,3.93856625,126.04,126.0,3.93856625]
[1764626195341,3.93856625,126.04,126.01,8.8]
[1764626195545,24.24363633,126.03,126.01,8.8]
[1764626197366,11.87283303,126.04,126.01,8.8]
[1764626197555,16.7435526,126.05,126.02,3.93856625]
[1764626197869,20.68211885,126.05,126.01,20.67439564]
[1764626198066,20.68211885,126.05,126.01,12.73856625]
[1764626198267,3.93856625,126.04,126.01,8.8]
[1764626199556,3.93856625,126.03,126.01,8.8]
[1764626201158,3.93856625,126.03,126.01,8.78]
[1764626203575,7.93461104,126.04,126.01,8.78]
[1764626203775,11.87317729,126.04,126.01,8.78]
[1764626204780,11.87317729,126.04,125.98,19.84402187]
[1764626204987,3.93856625,126.02,125.99,8.78]
[1764626205363,3.93856625,126.03,125.99,8.78]
[1764626205682,4.13856625,126.07,126.02,3.93856625]
[1764626205890,4.13856625,126.07,126.03,12.71856625]
[1764626206677,12.07088329,126.07,126.03,20.65271642]
[1764626207274,3.93856625,126.06,126.03,16.71415017]
[1764626207583,3.93856625,126.05,126.03,16.71415017]
[1764626208355,2.51800834,126.05,126.03,16.71415017]
[1764626208562,10.45102838,126.06,126.03,16.71415017]
[1764626208982,10.45102838,126.06,126.03,7.93415017]
[1764626209282,2.51800834,126.05,126.03,16.71415017]
[1764626210989,2.51800834,126.06,126.03,16.71415017]
[1764626213388,10.65038103,126.07,126.03,19.23215851]
[1764626213685,0.2,126.07,126.04,2.51800834]
[1764626213883,0.2,126.07,126.05,2.51800834]
[1764626214186,0.2,126.07,126.06,8.78]
[1764626215188,0.2,126.07,126.06,16.71273044]
[1764626216174,0.2,126.07,126.06,19.23073878]
[1764626224794,0.2,126.07,126.06,16.71273044]
[1764626229295,0.2,126.07,126.05,7.93335977]
[1764626229524,0.2,126.07,126.06,8.78]
[1764626231506,0.2,126.07,126.06,19.23073878]
[1764626236022,4.863615,126.22,126.06,83.78]
[1764626236306,6.89949845,126.44,126.29,0.14216157]
[1764626236513,6.89949845,126.44,126.28,4.13964798]
[1764626236514,150.0,126.41,126.28,6.65765632]
[1764626236680,150.0,126.39,126.31,2.51800834]
[1764626236886,30.11689829,126.38,126.29,23.80480063]
[1764626237191,75.0,126.39,126.3,10.07203336]
[1764626237392,84.28,126.45,126.38,2.51800834]
[1764626237607,108.07347265,126.45,126.38,2.51800834]
[1764626237914,86.79800834,126.45,126.38,4.51800833]
[1764626238112,86.79800834,126.45,126.39,1.99999999]
[1764626238314,8.95210649,126.38,126.31,1.99999999]
[1764626238496,11.47011483,126.35,126.26,28.32658735]
[1764626238693,11.47011483,126.35,126.27,2.51800834]
[1764626238891,11.47011483,126.35,126.29,1.99999999]
[1764626239292,11.47011483,126.35,126.28,6.65765632]
[1764626239293,11.47011483,126.35,126.28,4.13964798]
[1764626239509,0.14216157,126.32,126.28,4.13964798]
[1764626239713,9.28,126.31,126.29,1.99999999]
[1764626242028,9.28,126.31,126.27,9.91934174]
[1764626242324,9.28,126.31,126.29,1.99999999]
[1764626243914,9.28,126.31,126.27,7.91953749]
[1764626244120,9.28,126.31,126.29,1.99999999]
[1764626246015,9.28,126.31,126.27,7.91953749]
[1764626246223,9.28,126.31,126.29,1.99999999]
[1764626247499,23.27396526,126.33,126.29,1.99999999]
[1764626247813,25.548864,126.32,126.29,1.99999999]
[1764626248331,23.81046866,126.36,126.3,6.96510126]
[1764626248502,9.24,126.35,126.32,1.99999999]
[1764626248703,9.24,126.35,126.32,8.96510125]
[1764626248902,9.24,126.34,126.32,8.96510125]
[1764626249325,9.24,126.34,126.32,1.99999999]
[1764626249914,9.24,126.34,126.33,7.91577614]
[1764626250113,9.24,126.34,126.32,1.99999999]
[1764626251832,9.24,126.34,126.32,9.91630174]
[1764626252067,15.91720775,126.38,126.32,16.881403]
[1764626252353,82.90883112,126.45,126.36,8.96510125]
[1764626252632,16.308864,126.38,126.36,8.96510125]
[1764626252948,9.22,126.37,126.36,8.96510125]
[1764626253437,9.22,126.37,126.36,16.87899805]
[1764626253606,23.79347265,126.43,126.37,1.99999999]
[1764626253808,18.02994492,126.42,126.37,8.96510125]
[1764626254010,16.308864,126.39,126.37,1.99999999]
[1764626254232,9.22,126.38,126.37,1.99999999]
[1764626257635,9.22,126.38,126.35,9.91434391]
[1764626257946,25.528864,126.38,126.35,1.99999999]
[1764626258528,25.528864,126.38,126.36,1.99999999]
[1764626263229,25.528864,126.38,126.35,7.91449125]
[1764626263443,25.528864,126.38,126.36,1.99999999]
[1764626263647,25.528864,126.38,126.35,7.91452314]
[1764626264157,16.308864,126.34,126.31,7.91660472]
[1764626264338,11.68505321,126.33,126.31,9.91660471]
[1764626264537,11.68505321,126.33,126.29,1.99999999]
[1764626264538,11.31499813,126.32,126.29,1.99999999]
[1764626264854,11.31499813,126.32,126.28,1.99999999]
[1764626265249,11.31499813,126.32,126.29,1.99999999]
[1764626265548,11.31499813,126.32,126.29,9.91827382]
[1764626265930,11.31499813,126.32,126.29,7.91827383]
[1764626266135,9.16,126.31,126.29,9.91827382]
[1764626268356,9.16,126.31,126.29,7.91827383]
[1764626268556,9.16,126.31,126.29,9.91827382]
[1764626269159,9.16,126.31,126.29,7.91827383]
[1764626269459,9.16,126.31,126.29,9.91827382]
[1764626270138,9.16,126.31,126.29,1.99999999]
[1764626270338,9.16,126.31,126.27,30.71392694]
[1764626270339,9.16,126.31,126.27,7.9192752]
[1764626270544,27.99387568,126.31,126.26,1.99999999]
[1764626270745,27.99387568,126.31,126.27,1.99999999]
[1764626271942,19.868696,126.3,126.26,1.99999999]
[1764626272560,39.67325487,126.3,126.26,1.99999999]
[1764626273162,47.59148697,126.3,126.26,1.99999999]
[1764626273368,36.67489746,126.3,126.26,1.99999999]
[1764626274863,75.0,126.38,126.29,10.91658951]
[1764626275063,10.91658951,126.36,126.3,1.99999999]
[1764626275263,8.95210649,126.34,126.29,10.91658951]
[1764626275453,9.16,126.33,126.3,1.99999999]
[1764626276564,9.16,126.33,126.29,10.91658951]
[1764626276959,27.99297789,126.33,126.28,9.91872164]
[1764626277160,27.99297789,126.33,126.28,7.91872165]
[1764626277347,10.91658951,126.32,126.28,7.91872165]
[1764626277547,10.91658951,126.32,126.27,9.9193125]
[1764626278666,8.95210649,126.32,126.29,1.99999999]
[1764626278868,19.868696,126.32,126.29,1.99999999]
[1764626279169,27.78553067,126.32,126.29,1.99999999]
[1764626279368,9.14,126.31,126.29,1.99999999]
[1764626280069,16.86894116,126.32,126.29,1.99999999]
[1764626280273,9.14,126.31,126.29,1.99999999]
[1764626280658,16.86894116,126.32,126.29,1.99999999]
[1764626280848,7.91591133,126.33,126.29,12.9165895]
[1764626281044,9.14,126.32,126.29,12.9165895]
[1764626281263,9.14,126.32,126.29,9.91789497]
[1764626281657,17.05668326,126.32,126.29,1.99999999]
[1764626281866,19.72653443,126.3,126.27,1.99999999]
[1764626282059,9.14,126.29,126.27,1.99999999]
[1764626283053,17.05833307,126.29,126.27,1.99999999]
[1764626283375,17.05833307,126.29,126.26,7.9200046]
[1764626283576,17.05833307,126.29,126.27,1.99999999]
[1764626286778,9.14,126.29,126.27,1.99999999]
[1764626287373,7.91796885,126.3,126.27,1.99999999]
[1764626287585,7.91796885,126.3,126.25,18.83713885]
[1764626287586,9.12,126.28,126.25,20.83713884]
[1764626287878,9.12,126.28,126.25,1.99999999]
[1764626288064,17.03949793,126.28,126.25,1.99999999]
[1764626290157,36.83677382,126.28,126.25,1.99999999]
[1764626290358,19.868696,126.27,126.24,0.2]
[1764626290577,9.12,126.26,126.24,0.2]
[1764626291960,20.03658951,126.26,126.24,0.2]
[1764626292285,27.9572534,126.26,126.24,0.2]
[1764626292884,36.17756,126.25,126.17,1.99999999]
[1764626293091,19.868696,126.23,126.2,1.99999999]
[1764626293290,9.1,126.22,126.2,1.99999999]
[1764626293496,19.02,126.21,126.2,1.99999999]
[1764626294483,26.94330243,126.21,126.2,1.99999999]
[1764626294960,28.12,126.21,126.2,12.9165895]
[1764626297102,28.12,126.21,126.2,1.99999999]
[1764626297667,36.04330243,126.21,126.2,1.99999999]
[1764626299969,36.04330243,126.21,126.18,10.91658951]
[1764626300169,36.04330243,126.21,126.2,1.99999999]
[1764626301372,66.76814802,126.21,126.16,9.92630356]
[1764626301574,55.85155851,126.21,126.18,1.99999999]
[1764626301773,55.85155851,126.21,126.16,18.84289308]
[1764626302099,55.85155851,126.21,126.18,1.99999999]
[1764626302478,55.85155851,126.21,126.16,10.91658951]
[1764626302677,66.76814802,126.21,126.18,1.99999999]
[1764626302986,66.76814802,126.21,126.15,12.9165895]
[1764626303184,66.76814802,126.21,126.16,1.99999999]
[1764626303498,19.868696,126.2,126.15,1.99999999]
[1764626303699,9.08,126.19,126.16,1.99999999]
[1764626304293,19.99658951,126.19,126.15,1.99999999]
[1764626304496,7.92518624,126.18,126.16,1.99999999]
[1764626304773,9.08,126.17,126.15,1.99999999]
[1764626304974,7.92518624,126.18,126.16,10.91658951]
[1764626305168,9.08,126.17,126.15,12.9165895]
[1764626305977,9.08,126.16,126.15,12.9165895]
[1764626308473,9.08,126.16,126.15,5.92590527]
[1764626309002,9.08,126.16,126.15,1.99999999]
[1764626310503,17.00644261,126.16,126.15,1.99999999]
[1764626310694,17.00644261,126.16,126.14,6.12590527]
[1764626310899,17.00644261,126.16,126.15,1.99999999]
[1764626311987,17.00644261,126.16,126.15,3.92590528]
[1764626311988,9.06,126.16,126.15,3.92590528]
[1764626312298,9.06,126.16,126.15,1.99999999]
[1764626313090,9.06,126.16,126.14,14.05358685]
[1764626313285,9.06,126.16,126.15,1.99999999]
[1764626314000,7.92604509,126.17,126.15,1.99999999]
[1764626314201,7.92550713,126.18,126.15,1.99999999]
[1764626314503,19.02,126.21,126.19,1.99999999]
[1764626314698,9.06,126.2,126.19,1.99999999]
[1764626314899,9.06,126.2,126.18,1.99999999]
[1764626315284,9.06,126.2,126.19,1.99999999]
[1764626317205,26.94365499,126.21,126.19,1.99999999]
[1764626317504,9.06,126.2,126.19,1.99999999]
[1764626327601,26.94365499,126.21,126.19,1.99999999]
[1764626327802,9.02,126.2,126.19,1.99999999]
[1764626330423,19.45598343,126.2,126.16,18.30886399]
[1764626330710,19.45598343,126.2,126.15,2.51205317]
[1764626330711,36.75375593,126.2,126.15,1.99999999]
[1764626330936,2.51205317,126.17,126.14,0.2]
[1764626331124,9.02,126.16,126.15,1.99999999]
[1764626332723,11.53205317,126.16,126.14,0.2]
[1764626333022,11.53205317,126.16,126.15,1.99999999]
[1764626333239,9.02,126.16,126.15,1.99999999]
[1764626333804,9.02,126.16,126.15,9.92707093]
[1764626334215,9.02,126.16,126.15,12.4391241]
[1764626334613,9.02,126.16,126.15,9.92707093]
[1764626334814,9.02,126.16,126.15,12.4391241]
[1764626335014,9.02,126.16,126.15,9.92707093]
[1764626335232,28.06,126.16,126.15,9.92707093]
[1764626337708,28.06,126.16,126.15,1.99999999]
[1764626338112,28.06,126.16,126.15,9.92707093]
[1764626339654,28.06,126.16,126.15,1.99999999]
[1764626339951,30.57205317,126.16,126.15,1.99999999]
[1764626340155,38.49849578,126.16,126.14,0.2]
[1764626340451,2.51205317,126.15,126.14,0.2]
[1764626340632,38.49849578,126.16,126.15,1.99999999]
[1764626341022,28.06,126.16,126.15,4.51205316]
[1764626341730,28.06,126.16,126.15,1.99999999]
[1764626342939,19.04,126.16,126.15,13.32199808]
[1764626343239,7.92251215,126.23,126.21,1.99999999]
[1764626343433,9.0,126.22,126.21,1.99999999]
[1764626343844,9.0,126.22,126.21,9.92330242]
[1764626344570,11.51205317,126.22,126.21,1.99999999]
[1764626346841,11.51205317,126.22,126.2,1.99999999]
[1764626346842,19.43472786,126.22,126.2,1.99999999]
[1764626347051,2.51205317,126.21,126.2,1.99999999]
[1764626348932,10.4353556,126.21,126.2,1.99999999]
[1764626350025,7.92330243,126.21,126.2,1.99999999]
[1764626350232,10.4353556,126.21,126.2,1.99999999]
[1764626354857,9.0,126.22,126.21,1.99999999]
[1764626355180,9.0,126.22,126.21,12.43535559]
[1764626356558,9.0,126.22,126.21,9.92330242]
[1764626356736,9.0,126.22,126.21,1.99999999]
[1764626358165,9.0,126.22,126.21,9.92330242]
[1764626358740,9.0,126.22,126.21,12.43535559]
[1764626362954,9.0,126.22,126.21,9.92330242]
[1764626365361,9.0,126.22,126.21,12.43535559]
[1764626365662,9.0,126.22,126.21,9.92330242]
[1764626370477,9.0,126.22,126.21,21.24530051]
[1764626370647,19.04,126.24,126.23,1.99999999]
[1764626370852,19.04,126.24,126.23,18.30886399]
[1764626370853,27.98,126.24,126.23,18.30886399]
[1764626371774,27.98,126.24,126.23,26.23091104]
[1764626372259,27.98,126.24,126.23,28.74296421]
[1764626373156,27.98,126.24,126.23,26.23091104]
[1764626374369,8.94,126.24,126.23,26.23091104]
[1764626374676,8.94,126.24,126.23,28.74296421]
[1764626376681,8.94,126.24,126.23,26.23091104]
[1764626380868,8.94,126.24,126.23,37.55290913]
[1764626390478,8.94,126.24,126.23,35.04085596]
[1764626390679,8.94,126.24,126.23,38.95962406]
[1764626393786,1e-08,126.24,126.23,43.02055373]
[1764626395390,1e-08,126.24,126.23,35.18301753]
[1764626395690,1e-08,126.24,126.23,39.10178563]
[1764626397669,1e-08,126.24,126.23,35.18301753]
[1764626397868,1e-08,126.24,126.23,39.10178563]
[1764626398791,1e-08,126.24,126.23,43.02055373]
[1764626399190,1e-08,126.24,126.23,39.10178563]
[1764626404073,1e-08,126.24,126.23,43.02055373]
[1764626404384,11.83486691,126.33,126.3,1.99999999]
[1764626404568,8.88,126.32,126.3,1.99999999]
[1764626404965,8.88,126.32,126.31,1.99999999]
[1764626405789,8.88,126.32,126.31,9.91702952]
[1764626409492,8.88,126.32,126.31,13.83579762]
[1764626410083,8.88,126.32,126.31,22.64574254]
[1764626411172,8.88,126.32,126.31,9.91702952]
[1764626411684,8.88,126.32,126.31,1.99999999]
[1764626411994,12.7987681,126.32,126.31,1.99999999]
[1764626412888,8.88,126.32,126.31,1.99999999]
[1764626413284,12.7987681,126.32,126.31,1.99999999]
[1764626415288,8.88,126.32,126.31,1.99999999]
[1764626417080,12.7987681,126.32,126.31,1.99999999]
[1764626418108,12.7987681,126.32,126.29,1.99999999]
[1764626418109,20.71517088,126.32,126.29,1.99999999]
[1764626418297,3.9187681,126.3,126.29,1.99999999]
[1764626419393,11.83642447,126.3,126.29,1.99999999]
[1764626421395,7.91702953,126.31,126.29,1.99999999]
[1764626421707,7.8375362,126.3,126.26,1.99999999]
[1764626422005,3.9187681,126.27,126.26,1.99999999]
[1764626425200,11.83814647,126.28,126.26,1.99999999]
[1764626425391,11.83814647,126.28,126.27,1.99999999]
[1764626430606,11.83814647,126.28,126.26,1.99999999]
[1764626430786,3.9187681,126.27,126.24,1.99999999]
[1764626430987,27.71665426,126.28,126.26,1.99999999]
[1764626431192,8.88,126.27,126.26,1.99999999]
[1764626432915,8.88,126.27,126.26,9.92016472]
[1764626434004,8.88,126.27,126.26,1.99999999]
[1764626434195,20.71830559,126.27,126.26,1.99999999]
[1764626435719,8.88,126.27,126.26,1.99999999]
[1764626439498,12.7987681,126.27,126.26,1.99999999]
[1764626441115,8.88,126.27,126.26,1.99999999]
[1764626444228,8.88,126.27,126.26,5.91876809]
[1764626445014,8.88,126.27,126.26,1.99999999]
[1764626445527,11.83714592,126.29,126.28,1.99999999]
[1764626445695,20.71714592,126.29,126.28,1.99999999]
[1764626448003,8.88,126.29,126.28,9.91891034]
[1764626448921,8.88,126.29,126.28,13.83767844]
[1764626449507,8.88,126.29,126.28,22.64762336]
[1764626450432,8.88,126.29,126.28,21.23481249]
[1764626450727,19.12,126.35,126.31,16.308864]
[1764626450915,8.88,126.34,126.32,2.50595723]
[1764626451230,8.88,126.34,126.33,1.99999999]
[1764626452617,8.88,126.34,126.33,9.91577613]
[1764626453030,8.88,126.34,126.33,12.42173336]
[1764626455737,19.30110682,126.34,126.32,1.99999999]
[1764626456041,19.30110682,126.34,126.33,1.99999999]
[1764626456213,11.38595723,126.34,126.33,1.99999999]
[1764626456414,8.88,126.34,126.33,1.99999999]
[1764626456615,12.49344538,126.34,126.33,1.99999999]
[1764626457641,12.49344538,126.34,126.33,12.42173336]
[1764626460234,12.49344538,126.34,126.33,9.91577613]
[1764626460437,12.49344538,126.34,126.33,12.42173336]
[1764626461106,12.49344538,126.34,126.33,9.91577613]
[1764626461332,12.49344538,126.34,126.33,12.42173336]
[1764626461527,12.49344538,126.34,126.33,21.23167828]
[1764626461839,12.49344538,126.34,126.33,21.37383985]
[1764626463114,8.98,126.35,126.34,10.80994491]
[1764626463333,8.98,126.35,126.34,13.31590214]
[1764626463619,8.98,126.35,126.34,13.45806371]
[1764626463824,8.98,126.35,126.34,9.91514958]
[1764626464438,8.98,126.35,126.34,26.22401358]
[1764626466036,11.48595723,126.35,126.34,1.99999999]
[1764626466343,15.94210664,126.35,126.34,1.99999999]
[1764626466820,16.89466611,126.35,126.33,1.99999999]
[1764626467020,6.96210664,126.34,126.33,1.99999999]
[1764626467933,6.96210664,126.34,126.3,24.2262571]
[1764626467934,14.87725623,126.34,126.32,1.99999999]
[1764626468143,7.91514959,126.34,126.33,1.99999999]
[1764626469315,8.98,126.35,126.33,1.99999999]
[1764626469519,6.96210664,126.34,126.33,1.99999999]
[1764626470422,23.85665172,126.35,126.33,1.99999999]
[1764626470634,6.96210664,126.34,126.33,1.99999999]
[1764626470837,14.87725623,126.34,126.32,1.99999999]
[1764626471153,6.96210664,126.33,126.32,1.99999999]
[1764626472841,14.87788278,126.33,126.32,1.99999999]
[1764626473248,16.89504007,126.35,126.32,1.99999999]
[1764626473430,16.89504007,126.35,126.33,1.99999999]
[1764626474756,14.87725623,126.34,126.33,1.99999999]
[1764626478248,6.96210664,126.34,126.33,1.99999999]
[1764626479126,16.89502974,126.35,126.33,1.99999999]
[1764626479331,8.98,126.35,126.34,1.99999999]
[1764626479527,15.94210664,126.35,126.34,1.99999999]
[1764626481548,0.1,126.35,126.34,9.91514958]
[1764626481739,8.98,126.35,126.34,9.91514958]
[1764626484448,8.98,126.35,126.34,25.68720114]
[1764626484654,0.1,126.37,126.36,27.11880891]
[1764626484936,0.1,126.37,126.36,34.22307712]
[1764626485829,1e-08,126.37,126.36,34.22307712]
[1764626486029,1e-08,126.41,126.4,10.95210648]
[1764626486243,1e-08,126.41,126.4,24.87631976]
[1764626486448,1e-08,126.41,126.4,21.364092]
[1764626486647,1e-08,126.41,126.4,30.324092]
[1764626487053,1e-08,126.41,126.4,28.778492]
[1764626487562,1e-08,126.41,126.4,19.818492]
[1764626487755,1e-08,126.41,126.4,17.31789888]
[1764626487947,1e-08,126.41,126.4,19.818492]
[1764626489562,0.1,126.47,126.44,0.45439999]
[1764626489761,10.37094474,126.48,126.47,0.45439999]
[1764626489946,18.43942617,126.55,126.54,16.308864]
[1764626490151,18.43942617,126.55,126.54,38.21833608]
[1764626490844,18.43942617,126.55,126.54,28.2159636]
[1764626491055,18.43942617,126.55,126.54,25.71537048]
[1764626491247,18.43942617,126.55,126.54,16.76326399]
[1764626491845,18.43942617,126.55,126.54,24.66590347]
[1764626492242,18.43942617,126.55,126.54,16.76326399]
[1764626492447,18.43942617,126.55,126.54,31.60088006]
[1764626492764,18.43942617,126.55,126.54,40.55298655]
[1764626493354,18.43942617,126.55,126.54,25.57320891]
[1764626493558,18.43942617,126.55,126.54,32.5081855]
[1764626493869,18.43942617,126.55,126.54,40.41082498]
[1764626494672,18.43942617,126.55,126.54,16.76326399]
[1764626494844,18.43942617,126.55,126.54,40.41082498]
[1764626495259,18.43942617,126.55,126.54,16.76326399]
[1764626495449,18.43942617,126.55,126.54,0.45439999]
[1764626495648,25.37440276,126.55,126.54,0.45439999]
[1764626496567,18.43942617,126.55,126.54,0.45439999]
[1764626497155,18.43942617,126.55,126.52,0.45439999]
[1764626497156,25.37440276,126.55,126.52,0.45439999]
[1764626497356,18.43942617,126.55,126.54,0.45439999]
[1764626498258,26.34144118,126.55,126.54,0.45439999]
[1764626498659,33.27641777,126.55,126.52,0.45439999]
[1764626498868,6.93497659,126.53,126.5,0.45439999]
[1764626499047,6.93497659,126.51,126.5,0.45439999]
[1764626500457,8.86,126.52,126.51,16.76326399]
[1764626501454,15.79497659,126.52,126.51,16.76326399]
[1764626501879,8.86,126.52,126.51,16.76326399]
[1764626502256,15.79497659,126.52,126.51,0.45439999]
[1764626503373,23.6988653,126.52,126.51,0.45439999]
[1764626503880,23.6988653,126.52,126.5,0.45439999]
[1764626504067,6.93497659,126.51,126.5,0.45439999]
[1764626504790,14.83949831,126.51,126.5,0.45439999]
[1764626505279,14.83949831,126.51,126.48,0.45439999]
[1764626505489,6.93497659,126.49,126.45,0.45439999]
[1764626505789,6.93497659,126.46,126.44,0.45439999]
[1764626506082,15.79497659,126.45,126.44,0.45439999]
[1764626506286,15.79497659,126.45,126.42,8.36410202]
[1764626506454,15.79497659,126.45,126.44,0.45439999]
[1764626506655,15.79497659,126.45,126.42,8.36410202]
[1764626506886,15.79497659,126.45,126.44,0.45439999]
[1764626507366,8.86,126.45,126.44,0.45439999]
[1764626507557,15.79497659,126.45,126.44,0.45439999]
[1764626508258,8.86,126.45,126.44,0.45439999]
[1764626508654,15.79497659,126.45,126.44,0.45439999]
[1764626508854,15.79497659,126.45,126.43,0.45439999]
[1764626509180,6.93497659,126.44,126.43,0.45439999]
[1764626509382,8.86,126.45,126.43,0.45439999]
[1764626509685,15.79497659,126.45,126.43,0.45439999]
[1764626510376,15.79497659,126.45,126.44,0.45439999]
[1764626510587,8.86,126.45,126.44,0.45439999]
[1764626512192,8.86,126.45,126.44,33.4820985]
[1764626512379,8.86,126.45,126.44,16.76326399]
[1764626513165,8.86,126.45,126.44,24.67215358]
[1764626514395,176.98685975,126.54,126.48,0.45439999]
[1764626514677,10.88685975,126.5,126.49,0.45439999]
[1764626514863,7.90263948,126.54,126.5,0.45439999]
[1764626515182,7.90263948,126.54,126.51,0.45439999]
[1764626515183,8.86,126.53,126.51,0.45439999]
[1764626515381,10.88685975,126.52,126.51,0.45439999]
[1764626516382,10.88685975,126.52,126.5,0.45439999]
[1764626516586,10.88685975,126.52,126.51,0.45439999]
[1764626516889,18.79074846,126.52,126.51,0.45439999]
[1764626517280,8.86,126.53,126.52,0.45439999]
[1764626517585,27.65012379,126.53,126.5,0.45439999]
[1764626517761,27.65012379,126.53,126.52,0.45439999]
[1764626518968,47.40828391,126.53,126.52,0.45439999]
[1764626519286,8.86,126.53,126.52,0.45439999]
[1764626519463,16.76326404,126.53,126.52,0.45439999]
[1764626519663,27.65012379,126.53,126.52,0.45439999]
[1764626520883,27.65012379,126.53,126.5,0.45439999]
[1764626521089,16.76326404,126.53,126.51,0.45439999]
[1764626521292,36.52142416,126.53,126.5,0.45439999]
[1764626521664,36.52142416,126.53,126.51,0.45439999]
[1764626522091,8.95210649,126.52,126.48,0.45439999]
[1764626522280,10.88685975,126.49,126.48,0.45439999]
[1764626522474,19.74685975,126.49,126.48,0.45439999]
[1764626523066,16.7657633,126.49,126.48,0.45439999]
[1764626523282,27.65262305,126.49,126.48,0.45439999]
[1764626524574,39.51632024,126.53,126.49,0.45439999]
[1764626524575,7.90527818,126.5,126.49,0.45439999]
[1764626524778,27.65213793,126.5,126.49,0.45439999]
[1764626528278,16.76527818,126.5,126.49,0.45439999]
[1764626528691,27.65213793,126.5,126.49,0.45439999]
[1764626529779,19.74685975,126.5,126.49,0.45439999]
[1764626531586,19.74685975,126.5,126.47,7.86102221]
[1764626531786,10.88685975,126.48,126.47,7.86102221]
[1764626532094,19.74685975,126.48,126.47,7.86102221]
[1764626534076,8.86,126.48,126.47,7.86102221]
[1764626537487,8.86,126.48,126.47,16.67096713]
[1764626542003,34.74829017,126.55,126.5,16.308864]
[1764626542004,18.43942617,126.55,126.5,16.308864]
[1764626542199,19.74685975,126.54,126.5,27.19572375]
[1764626542394,8.86,126.54,126.51,19.69680467]